Cogmind - Beta 13 X1 @@@ ROGUE MODE // 2023.09.22 @ 20:38:13 Player: youngster Result: Destroyed by D-53 Grenadier with Mini Grenade Launcher Performance ------------- Evolutions (0) 0 Regions Visited (2) 400 Robots Destroyed (24) 120 Value Destroyed (630) 630 Prototype IDs (3) 60 Alien Tech Used (0) 0 Bonus (0) 0 TOTAL SCORE: 1210 Bonus ------- None Cogmind --------- Core Integrity 0/250 Matter 37/300 Energy 99/100 System Corruption 3% Temperature Cool (0) Movement Core (50) Location -10/Mines Parts ------- > --- POWER (1) -------- (None) > --- PROPULSION (2) --- (None) > --- UTILITY (2) ------ (None) > --- WEAPON (2) ------- (None) > --- INVENTORY (5) ---- Light Ion Engine Light Treads Compact Wheel Improved Terrain Scanner EM Pulse Gun Peak State ------------ > --- POWER ------------ Ion Engine > --- PROPULSION ------- Light Treads Light Treads > --- UTILITY ---------- Small Storage Unit Seismic Detector > --- WEAPON ----------- Light Assault Rifle Light Assault Rifle > --- INVENTORY -------- Light Ion Engine Light Treads Wheel Structural Scanner Improved Terrain Scanner Seismic Detector EM Pulse Gun Grenade Launcher [Rating: 8] Favorites ----------- Power Ion Engine Engine Ion Engine Propulsion Light Treads Treads Light Treads Utility Small Storage Unit Device Seismic Detector Storage Small Storage Unit Weapon Light Assault Rifle Energy Gun EM Pulse Gun Ballistic Gun Light Assault Rifle Launcher Grenade Launcher Build | -11 -10 -10 ------- Run | Jun Mat Min Slots Evolved . | . . . Power . | . . . Propulsion . | . . . Utility . | . . . Weapon . | . . . Parts Attached 35 | 7 24 4 Power 2 | 1 1 . Engine 2 | 1 1 . Core . | . . . Reactor . | . . . Propulsion 5 | 2 2 1 Treads 5 | 2 2 1 Leg . | . . . Wheel . | . . . Hover . | . . . Flight . | . . . Utility 3 | 1 2 . Device 2 | . 2 . Storage 1 | 1 . . Processor . | . . . Hackware . | . . . Protection . | . . . Artifact . | . . . Weapon 25 | 3 19 3 Energy Gun 3 | 1 2 . Energy Cannon . | . . . Ballistic Gun 13 | 2 9 2 Ballistic Cannon . | . . . Launcher 9 | . 8 1 Special Weapon . | . . . Impact Weapon . | . . . Slashing Weapon . | . . . Piercing Weapon . | . . . Special Melee Weapon . | . . . Unidentified Prototypes . | . . . Parts Lost 5 | . 1 4 Power . | . . . Propulsion 3 | . . 3 Utility . | . . . Weapon 2 | . 1 1 Highest Loss Streak 4 | . 1 4 To Critical Strikes . | . . . Average Slot Usage (%) 99 | . 100 94 Engine 14 | . 14 14 Treads 27 | . 28 26 Device 14 | . 14 14 Storage 13 | . 14 13 Energy Gun 2 | . 2 . Ballistic Gun 20 | . 21 13 Launcher 4 | . 3 13 Naked Turns . | . . . Heaviest Build 17 | 13 17 17 Greatest Support 40 | 40 40 40 Greatest Overweight (x) . | . . . Average Overweight (x) . | . . . Largest Inventory Capacity 8 | 8 8 8 Average Capacity 7 | 6 8 7 Most Carried 8 | 6 8 8 Average Carried 7 | 2 7 7 Final Capacity 8 | 8 8 5 Final Carried 8 | 6 8 5 Class Distribution -------------------- 84% | Mutant 15% | Scavenger-Mutant Dominant Class ---------------- Mutant | -10/Materials Mutant | -10/Mines Resources | -11 -10 -10 ----------- Run | Jun Mat Min Matter Collected 578 | 277 277 24 Remotely . | . . . Salvage Created 872 | 128 688 56 Parts 51 | 10 41 . Haulers Intercepted 2 | . 2 . Recyclers Shooed . | . . . Parts Field Recycled . | . . . Retrieved Matter . | . . . Parts Self-Destructed . | . . . Prevented . | . . . Kills | -11 -10 -10 ------- Run | Jun Mat Min Combat Hostiles Destroyed 32 | . 14 18 Guns 9 | . 9 . AOE 22 | . 4 18 Classes Destroyed 8 | 2 5 1 Worker 2 | . 2 . Tunneler 3 | 3 . . Hauler 2 | . 2 . Recycler 1 | 1 . . Operator 1 | . 1 . Watcher 1 | . 1 . Grunt 14 | . 14 . Assembled 18 | . . 18 Best Kill Streak 18 | 4 5 18 Combat Bots Only 18 | . 3 18 Max Kills in Single Turn 7 | 2 2 7 Gunslinging . | . . . Exploded 7 | . 2 7 Melee . | . . . Uniques/NPCs Destroyed . | . . . Combat | -11 -10 -10 -------- Run | Jun Mat Min Damage Taken 1122 | . 685 437 Core 294 | . 154 140 Absorbed by Shields . | . . . Core Remaining (%) 100 | 100 . . Volleys Fired 78 | 9 57 12 Largest 2 | 2 2 2 Hottest 80 | 60 80 60 Shots Fired 145 | 16 109 20 Gun 123 | 16 98 9 Cannon . | . . . Launcher 22 | . 11 11 Special . | . . . Kinetic 96 | 13 74 9 Thermal . | . . . Explosive 22 | . 11 11 Electromagnetic 27 | 3 24 . Robot Hit Streak 11 | 7 11 4 Robot Miss Streak 5 | 2 4 5 Penetration Max . | . . . Secondary Targets 1 | . 1 . Max Gunslinging Chain 1 | . 1 . Shots Hit Robots 86 | 11 67 8 Core Hits 85 | 6 43 36 Critical Kills . | . . . Critical Parts Destroyed . | . . . Critical Strikes . | . . . Melee Attacks . | . . . Impact . | . . . Slashing . | . . . Piercing . | . . . Sneak Attacks . | . . . Combat Hostiles . | . . . Follow-up Attacks . | . . . Damage Inflicted 2372 | 116 1172 1084 Guns 813 | 116 669 28 Cannons . | . . . Explosions 1557 | . 501 1056 Melee . | . . . Ramming 2 | . 2 . Kinetic 525 | 89 408 28 Thermal . | . . . Explosive 1557 | . 501 1056 Electromagnetic 288 | 27 261 . Impact . | . . . Slashing . | . . . Piercing . | . . . Highest Corruption 3 | . . 3 Average Corruption 3 | . . 3 Corruption Purged . | . . . Corruption Blocked . | . . . Overload Shots . | . . . Overflow Damage 34 | . 9 25 Projectiles . | . . . Explosions 34 | . 9 25 Melee . | . . . Knockbacks . | . . . Impact . | . . . Kinetic . | . . . Secondary . | . . . Self-Inflicted Damage 88 | . 16 72 Shots 5 | . 3 2 Rammed 2 | . 2 . Targets Rammed 2 | . 2 . Kicked . | . . . Crushed . | . . . Highest Temperature 180 | 20 180 40 Average Temperature 50 | 13 61 18 Received Heat Transfer 516 | . 396 120 Siege Activations . | . . . Robots Corrupted 1 | . 1 . Combat Hostiles 1 | . 1 . Parts Fried 1 | . 1 . Impact Corruptions . | . . . Robots Melted . | . . . Combat Hostiles . | . . . Parts Melted . | . . . Heat Transferred . | . . . Parts Sabotaged . | . . . Parts Stolen . | . . . Parts Stripped . | . . . Power Chain Reactions . | . . . Missiles Intercepted . | . . . Alert | -11 -10 -10 ------- Run | Jun Mat Min Peak Influence 364 | 20 364 119 Initial 101 | . 13 101 Average 152 | 7 167 105 Maximum Alert Level 1 | . 1 . Low Security (%) 62 | 100 56 100 Level 1 37 | . 43 . Level 2 . | . . . Level 3 . | . . . Level 4 . | . . . Level 5 . | . . . High Security . | . . . Max Security . | . . . Squads Dispatched 4 | . 4 . Investigation 2 | . 2 . Extermination . | . . . Reinforcement 2 | . 2 . Assault . | . . . Garrison . | . . . Intercept . | . . . Searches Triggered . | . . . Construction Impeded . | . . . Haulers Reinforced . | . . . Active Scanning Responses . | . . . Cargo Convoy Interrupts . | . . . Stealth | -11 -10 -10 --------- Run | Jun Mat Min Distress Signals 3 | . 3 . Communications Jammed . | . . . Distress Signals . | . . . Times Spotted 47 | . 24 23 Peak Tracking Total 19 | . 4 19 Tactical Retreats 3 | . 2 1 Traps | -11 -10 -10 ------- Run | Jun Mat Min Traps Triggered 1 | . 1 . Indirectly . | . . . Trap Hack Attempts . | . . . Triggered . | . . . Disarmed . | . . . Reprogrammed . | . . . Reused . | . . . Traps Extracted . | . . . Installed . | . . . Triggered . | . . . Machines | -11 -10 -10 ---------- Run | Jun Mat Min Machines Disabled 6 | . 5 1 Max in Single Turn 2 | . 2 1 Machines Repaired . | . . . Machines Sabotaged . | . . . Overloaded Fab Kills . | . . . Hacking | -11 -10 -10 --------- Run | Jun Mat Min Machines Accessed 6 | . 6 . Terminals 5 | . 5 . Fabricators . | . . . Repair Stations 1 | . 1 . Recycling Units . | . . . Scanalyzers . | . . . Garrison Access . | . . . Total Hacks 17 | . 17 . Successful 11 | . 11 . Failed 6 | . 6 . Catastrophic 1 | . 1 . Database Lockouts . | . . . Manual 11 | . 11 . Terminals 14 | . 14 . Fabricators . | . . . Repair Stations 3 | . 3 . Recycling Units . | . . . Scanalyzers . | . . . Garrison Access . | . . . Terminal Hacks 6 | . 6 . Part Schematic 1 | . 1 . Robot Schematic 1 | . 1 . Prototype ID Bank 2 | . 2 . Locate Traps 2 | . 2 . Fabricator Hacks . | . . . Repair Station Hacks 1 | . 1 . Scan Component 1 | . 1 . Recycling Unit Hacks . | . . . Scanalyzer . | . . . Garrison Access Hacks . | . . . Unauthorized Hacks 4 | . 4 . Terminals 4 | . 4 . Botnet 3 | . 3 . Operators 1 | . 1 . Fabricators . | . . . Repair Stations . | . . . Recycling Units . | . . . Scanalyzers . | . . . Garrison Access . | . . . Data Cores Recovered 1 | . 1 . Used . | . . . Hacking Detections 6 | . 6 . Full Trace Events 1 | . 1 . Feedback Events . | . . . Feedback Blocked . | . . . Robot Schematics Acquired 1 | . 1 . Robots Built . | . . . Authchips . | . . . Time . | . . . Total Robot Build Rating . | . . . Part Schematics Acquired 1 | . 1 . Parts Built . | . . . Authchips . | . . . Time . | . . . Total Part Build Rating . | . . . Parts Repaired . | . . . Time . | . . . Parts Recycled . | . . . Recycled Matter . | . . . Retrieved Matter . | . . . Retrieved Components . | . . . Parts Scanalyzed . | . . . Part Schematics Acquired . | . . . Parts Damaged . | . . . Bothacking | -11 -10 -10 ------------ Run | Jun Mat Min Used RIF Installer . | . . . Robots Hacked . | . . . Non-combat . | . . . Combat . | . . . Robot Hacks Applied . | . . . Relay Couplers Released . | . . . Fabnet Peak Effective % . | . . . Robots Rewired . | . . . Allies Hacked . | . . . Hacks Repelled . | . . . Allies | -11 -10 -10 -------- Run | Jun Mat Min Total Allies . | . . . Largest Group . | . . . Highest-Rated Group . | . . . Highest-Rated Ally . | . . . Total Orders . | . . . Ally Attacks . | . . . Total Damage . | . . . Kills . | . . . Allies Corrupted . | . . . Allies Melted . | . . . Intel | -11 -10 -10 ------- Run | Jun Mat Min Robot Analysis Total . | . . . Derelict Logs Recovered 1 | . . 1 Drone Launches . | . . . Drone Recoveries . | . . . Exploration | -11 -10 -10 ------------- Run | Jun Mat Min Turns Passed 1749 | 113 1498 138 Spaces Moved 888 | 49 775 64 Core 4 | 3 . 1 Treads 884 | 46 775 63 Legs . | . . . Wheels . | . . . Hover . | . . . Flight . | . . . Fastest Speed 50 | 50 160 50 Average Speed 159 | 153 160 158 Slowest Speed 160 | 160 160 160 Overloaded Moves . | . . . Propulsion Burnouts . | . . . Robots Hopped . | . . . Cave-ins Triggered . | . . . Exploration Rate (%) 43 | 4 97 29 Regions Visited 2 Branch Regions 1 Pre-discovered Areas . | . . . Known Exits Taken . | . . . Unknown Exits Taken 2 | 1 1 . Scrap Searched 1 | . . 1 Spaces Dug 40 | . 40 . Terrain Destroyed 126 | . 92 34 Melee . | . . . Projectile . | . . . AOE 126 | . 92 34 Terrain Rammed . | . . . Walls Destroyed . | . . . Machines Disabled . | . . . Actions | -11 -10 -10 --------- Run | Jun Mat Min Total 1085 | 71 932 82 Wait 62 | . 62 . Move 886 | 48 774 64 Hop . | . . . Pick Up 13 | 6 7 . Fast Attach 6 | 6 . . Attach 5 | 1 2 2 Detach 1 | 1 . . Swap 24 | . 22 2 Drop 8 | . 6 2 Fire 78 | 9 57 12 Melee . | . . . Ram . | . . . Kick . | . . . Crush 2 | . 2 . Escape Stasis . | . . . Rewire . | . . . Trap . | . . . Miscellaneous . | . . . Route ------- -11/Junkyard -10/Materials (discovered 4 exits: [*Mat x3] / [*Min]) -10/Mines History --------- Turn | Location | Event 20 | -11/Junkyard | Discovered new exit (range 13) 114 | -11/Junkyard | Entered Materials 307 | -10/Materials | Build established: Mutant 810 | -10/Materials | Discovered new exit (range 12) 874 | -10/Materials | Discovered new exit (range 15) 1135 | -10/Materials | Discovered new exit (range 13) 1234 | -10/Materials | Core integrity fell below 50% 1407 | -10/Materials | Discovered new exit (range 6) 1612 | -10/Materials | Entered Mines 1613 | -10/Mines | Met a Derelict bent on vengeance 1632 | -10/Mines | Learned Materials terminal intel 1700 | -10/Mines | Assembled infested the area 1725 | -10/Mines | Core integrity fell below 20% 1750 | -10/Mines | Released all parts (3) 1750 | -10/Mines | Destroyed by D-53 Grenadier with Mini Grenade Launcher Last Messages --------------- 01733_ Acquired 2 matter. 01734_ U-05 Engineer lays Concrete. 01735_ as-50853 destroyed. 01736_ The unstable cave ceiling collapses. 01736_ U-05 Engineer lays Concrete. 01737_ The unstable cave ceiling collapses. 01737_ U-05 Engineer lays Concrete. 01741_ The unstable cave ceiling collapses. 01741_ U-05 Engineer lays Concrete. 01746_ D-53 Grenadier unfolds itself. 01747_ U-05 Engineer lays Concrete. 01748_ Dropped Sml. Storage Unit. 01749_ U-05 Engineer lays Concrete. 01749_ Dropped Lgt. Assault Rifle. 01749_ as-90399 destroyed. 01749_ Lgt. Treads destroyed. 01750_ The unstable cave ceiling collapses. 01750_ Released Ion Engine. 01750_ Released Seismic Detector. 01750_ Released Lgt. Assault Rifle. Map ----- +----------------------------------------------------+ | #?????????# ?????????????????????????? | | #????????# ??????????????????????????? | | ####???????# #???????????????????????????? | | ??????????# #????????????????????????????? | | ??????#### #????????????????????????????? | | #???## #####????????????????????????? | | #??## ???????????????????????? | | #### ??????????????????????????? | | #??????????????###????????????????? | | #### ###?????????????# ##???????????????? | | ??## #????#####?????? #???????????????? | | ?## #???## ##????# #???????????????? | | ## ##?## #?### #####???????????? | | # ### ### """ #???????????? | | ### """ #????????????? | | ## ## """ #?????????????? | | ### #??????????????? | | # ##?# ## #???????????????? | | ## ##??# ## ####???????????????? | | ?# ###??# # ######??????????????? | | ?## ##????# ! #??????????????? | | ??####?????# #??????????????? | | ???????????####### ##### #??????????????? | | ?????????????????# #?### #??????????????? | | ?????????????????# ### # ####???????????? | | ?????????????????# # [@ ##???????????? | | ?????????????????# !!* ##???????????? | | ??????????????# % [ #??????????? | | ??????????????## d #??????????? | | ????????????# d # ##??????????? | | ???????????# % #??????????? | | ???????????? ##??????????? | | ???????????? % #???????????? | | ???????????? #???????????? | | ???????????? ##???????????? | | ????????????? ##### u #????????????? | | ??????????????????## % #????????????? | | ??????????????????# ##????????????? | | ??????????????????# #?????????????? | | ??????????????????##### ####?????????????? | | ??????????????????????# ?????????????????? | | ?????????????????????? ?????????????????? | | ???????????????????????? ?????????????????? | | ??????????????????????????????????????????? | | ??????????????????????????????????????????? | | ??????????????????????????????????????????? | | ??????????????????????????????????????????? | | ??????????????????????????????????????????? | | ??????????????????????????????????????????? | | ??????????????????????????????????????????? | +----------------------------------------------------+ Best States ------------- Heat Dissipation 25 Energy Generation 10 Energy Capacity 250 Matter Stores 300 Matter Capacity 300 Sight Range 16 Terrain Scan Density 10 Evasion (%) 40 Recoil Reduction 2 Item Schematics ----------------- Cargo Storage Unit | -10/Materials | Hacked Robot Schematics ------------------ M-13 Machinist | -10/Materials | Hacked Fabricated ------------ Nothing Alien Tech Used ----------------- None Achievements -------------- None Challenges ------------ None Game ------ Seed SalvageSpreadHammer Manual? 0 Play Time 00:12:54 Cumulative 428.8 hours Start 2023.09.22 @ 20:27:07 End 2023.09.22 @ 20:38:13 Sessions 1 Manual Loads 0 Difficulty Rogue Special Mode None Game No. 192 Rogue 192 Adventurer 0 Explorer 0 Win Type - Total 10 Types 7/0/1/1/0/0/0/1/0 Lore% 86 Gallery% 92 Achievement% 71 Wizard Run 0 Options --------- ASCII 1 Keyboard 1 Movement Vi Keybinds 0 Fullscreen 2 Font 14/SmallcapsGlow Map View 72x54 Tactical HUD 1 Map Filters NONE Filters NONE Steam 0 RUN: 11acc872-533e-4945-b2c4-c861290e889c